{"text_format":"1","workbook":"xlsx","n_sheets":1,"sheets":["conceptos"],"not_rendered":{"charts":0,"images":2,"macros":1,"external_links":0,"defined_names":1,"comments":0,"pivot_tables":0},"unopened":[],"bounds":{"document_bytes":16777216,"sheet_cells":100000,"rows_first":2000,"rows_last":500,"rows_between":2000,"halvings":0,"cell_chars":16384,"cell_head_chars":4096},"cells_cut":0,"cells_raw":0,"read":"whole","date_system":"1900"}

{"sheet":"conceptos","index":0,"n_rows":96,"n_cols":8,"rows_kept":96,"cut":false,"hidden":false,"merged":[[93,0,93,4],[94,0,95,4],[13,0,13,6],[0,2,0,5],[9,2,9,5],[1,2,3,5],[4,2,4,3],[6,2,6,3],[7,2,7,3],[4,4,4,5],[5,4,5,5],[6,4,6,5],[7,4,7,5],[10,2,10,5],[11,2,11,5],[5,1,8,1]]}
[null,"GOBIERNO DEL ESTADO DE JALISCO","LICITACIÓN PÚBLICA ESTATAL"]
[null,"INSTITUTO DE LA INFRAESTRUCTURA FÍSICA EDUCATIVA DEL","INFEJAL-E-REM-B-REH-04824-LP-0223-2020"]
[null,"ESTADO DE JALISCO"]
[]
[null,"DESCRIPCIÓN GENERAL DE LOS TRABAJOS:","FECHA DE INICIO:"]
[null,null,null,"FECHA DE TERMINACIÓN:"]
[null,null,"PLAZO DE EJECUCIÓN:"]
[null,null,"FECHA:"]
[]
[null,"RAZÓN SOCIAL DEL LICITANTE:","NOMBRE, CARGO Y FIRMA DEL LICITANTE:",null,null,null,"DOCUMENTO"]
[]
[]
[]
["PRESUPUESTO DE OBRA"]
[]
["CLAVE","DESCRIPCIÓN","UNIDAD","CANTIDAD","PRECIO UNITARIO ($)","PRECIO UNITARIO ($) CON LETRA","IMPORTE ($) M.N."]
["TRABAJO : BAS-REH-04824","REPOSICIÓN DE CUBIERTAS DE PANEL DE POLIURETANO Y REHABILITACIÓN GENERAL DE NÚCLEO DE SANITARIOS EN LA ESCUELA SECUNDARIA TÉCNICA NO. 131 CCT 14DST0138X, UBICADA EN LA LOCALIDAD EL SALITRE, MUNICIPIO DE SAN MARTÍN HIDALGO, JALISCO.",null,null,null,null,{"$f":"TEXT((G18), \"$ #,##0.00 ;\")","v":"$ 0.00 "}]
["EDFS","EDIFICIOS",null,null,null,null,{"$f":"TEXT(SUM(G19 + G34 + G40 + G43 + G46 + G51 + G55 + G60 + G67 + G72), \"$ #,##0.00 ;\")","v":"$ 0.00 "}]
["EDFS.01(140)","DEMOLICIONES, DESMONTAJES Y MECANICA DE SUELOS    ",null,null,null,null,{"$f":"TEXT(SUM(G20:G33), \"$ #,##0.00 ;\")","v":"$ 0.00 "}]
[140048,"DEMOLICION DE PISO DE MOSAICO Y/O DE CONCRETO INCLUYE; RETIRO Y ACARREO DE OBRA DE MATERIAL PRODUCTO DE LA DEMOLICION Y MANO DE OBRA CALIFICADA.\n","M2 ","34.1000",0,"CERO PESOS 00/100 M.N.",0,311358]
[140050,"DEMOLICION DE FIRME DE LADRILLO DE LAMA DE 8 CM. DE ESPESOR ASENTADO CON MORTERO CAL-ARENA AMARILLA, INCLUYE; HERRAMIENTA, EQUIPO  NECESARIO, MANO DE OBRA Y ACARREO DE MATERIAL PRODUCTO DE DEMOLICION FUERA DE LA OBRA.","M2 ","34.1000",0,"CERO PESOS 00/100 M.N.",0,311359]
[140076,"DEMOLICION DE MURO DE LADRILLO DE LAMA Y/O BLOCK DE JALCRETO DE 14 CMS. DE ESPESOR A CUALQUIER NIVEL, INCLUYE:  DEMOLICION DE DALAS, CADENAS Y CASTILLOS,  DEMOLICION DE RECUBRMIENTOS, APLANADOS, AZULEJO,(PROTECCIONES DE PISOS, VIDRIOS, PUERTAS, VENTANAS, LAMPARAS Y DEMAS INSTALACIONES QUE PUDIERAN RESULTAR DAÑADAS EN EL PROCESO DE LA DEMOLICION.) HERRAMIENTAS, EQUIPO DE SEGURIDAD,  ANDAMIOS, MANO DE OBRA, RETIRO Y ACARREO DE MATERIALES DE DESHECHO DENTRO Y FUERA DE LA OBRA ATIRADERO AUTORIZADO Y LIMPIEZA DEL AREA DE LOS TRABAJOS.","M2 ","21.3000",0,"CERO PESOS 00/100 M.N.",0,311360]
[140078,"DEMOLICION DE AZULEJO A CUALQUIER NIVEL, INCLUYE:,(PROTECCIONES DE PISOS, VIDRIOS, PUERTAS, VENTANAS, LAMPARAS Y DEMAS INSTALACIONES QUE PUDIERAN RESULTAR DAÑADAS EN EL PROCESO DE LA DEMOLICION.) HERRAMIENTAS, EQUIPO DE SEGURIDAD,  ANDAMIOS, MANO DE OBRA, ACARREO DEL PRODUCTO DE LA DEMOLICION  DENTRO Y FUERA DE LA OBRA Y LIMPIEZA DEL AREA DE TRABAJO.","M2 ","56.8000",0,"CERO PESOS 00/100 M.N.",0,311361]
[140083,"DEMOLICION DE APLANADOS DE 2.5 CMS. DE ESPESOR EN MUROS Y BOVEDAS  A CUALQUIER NIVEL, INCLUYE: (PROTECCIONES DE PISOS, VIDRIOS, PUERTAS, VENTANAS, LAMPARAS Y DEMAS INSTALACIONES QUE PUDIERAN RESULTAR DAÑADAS EN EL PROCESO DE LA DEMOLICION.) HERRAMIENTAS, EQUIPO DE SEGURIDAD,  ANDAMIOS, MANO DE OBRA, RETIRO Y ACARREO DE MATERIALES DE DESHECHO DENTRO Y FUERA DE LA OBRA ATIRADERO AUTORIZADO Y LIMPIEZA DEL AREA DE LOS TRABAJOS.","M2 ","56.8000",0,"CERO PESOS 00/100 M.N.",0,311362]
[140123,"DESMANTELAR Y RETIRAR INSTALACION HIDRAULICA EXISTENTE. INCLUYE: HERRAMIENTA, MANO DE OBRA, LIMPIEZA DEL AREA DE TRABAJO, ACARREO DEL MATERIAL PRODUCTO DEL DESMANTELAMIENTO DENTRO Y FUERA DE LA OBRA.\n","SAL","15.0000",0,"CERO PESOS 00/100 M.N.",0,311363]
[140124,"DESMANTELAR Y RETIRAR INSTALACION SANITARIA EXISTENTE. INCLUYE:MANO DE OBRA, HERRAMIENTA, LIMPIEZA DEL AREA DE TRABAJO,  ACARREO DEL MATERIAL PRODUCTO DEL DESMANTELAMIENTO DENTRO Y FUERA DE LA OBRA.\n","SAL","15.0000",0,"CERO PESOS 00/100 M.N.",0,311364]
[140128,"DESCONEXION Y DESMONTAJE DE TINACO  EXISTENTE DE 1,100 LTS. DE CAPACIDAD. INCLUYE: ACARREO DENTRO Y FUERA DE LA OBRA, HERRAMIENTAS, EQUIPO DE SEGURIDAD Y MANO DE OBRA, A CUALQUIER ALTURA.\n","PZA","2.0000",0,"CERO PESOS 00/100 M.N.",0,311365]
[140129,"DESINSTALACION DE MUEBLE DE BAÑO YA SEA INODORO, LAVABO, MINGITORIO,  ETC. SIN RECUPERACION  INCLUYE:  DESCONEXION, HERRAMIENTAS, MANO DE OBRA, LIMPIEZA Y ACARREO DEL MUEBLE FUERA DE LA OBRA.","PZA","14.0000",0,"CERO PESOS 00/100 M.N.",0,311366]
[140199,"DESMONTAJE DE PUERTAS Y MAMPARAS CON MARCO Y CONTRA MARCOS DE HERRERIA TUBULAR Y/O DE ALUMINIO EXISTENTES EN OBRA, SIN RECUPERACION, TRASLADO Y GUARDADO EN BODEGA O LUGAR INDICADO POR SUPERVISION. INCLUYE; ANTEPECHO, DEMOLICION DE ANCLAJES, ACARREO Y RETIRO FUERA DE OBRA DE MATERIAL PRODUCTO DE LA DEMOLICION, MANO DE OBRA CALIFICADA Y LIMPIEZA DEL AREA DE TRABAJO.","M2 ","28.4000",0,"CERO PESOS 00/100 M.N.",0,311367]
[140407,"DESMONTAJE DE CANCELERIA Y PUERTAS EXISTENTES DE ALUMINIO Y/O HERRERIA (PERFILES METALICOS). SIN RECUPERACION. INCLUYE; HERRAMIENTA, EQUIPO, MANO DE OBRA CALIFICADA, ACARREO A SITIO ASIGNADO FUERA DE LA  OBRA Y TODO LO NECESARIO PARA SU CORRECTO DESMONTAJE.","M2 ","7.1000",0,"CERO PESOS 00/100 M.N.",0,311368]
[140652,"DEMOLICION DE LOSA DE CONCRETO ARMADO RECUBIERTA DE AZULEJO A CUALQUIER NIVEL. INCLUYE: RETIRO DEL MATERIAL PRODUCTO DE LA DEMOLICION DENTRO Y  FUERA DE LA OBRA, HERRAMIENTA, MANO DE OBRA, Y LIMPIEZA DEL AREA DE TRABAJO.","M2 ","4.3000",0,"CERO PESOS 00/100 M.N.",0,311369]
[933823,"DESCONEXION Y RETIRO DE BOMBA EXISTENTE. INCLUYE; HERRAMIENTA, MANO DE OBRA, ACARREO Y ALMACENAJE DE LA BOMBA, EN LUGAR INDICADO POR  LA SUPERVISION..","PZA","1.0000",0,"CERO PESOS 00/100 M.N.",0,311370]
[934055,"DESINSTALACION DE LÍNEAS DE TUBERIA HIDRAULICA GALVANIZADA DE  1 1/2\" A 2 1/2\" DE DIAMETRO, SIN RECUPERACION, INCLUYE: DESCONEXION Y RETIRO DE ACCESORIOS (CODOS, COPLES, NIPLES, VALVULAS, NUDOS, TEES, ETC.), RETIRO DE ELEMENTOS DE FIJACION, ANDAMIOS  HERRAMIENTA, MANO DE OBRA, ACARREO DEL MATERIAL PRODUCTO DEL DESMANTELAMIENTO DENTRO Y FUERA DE LA OBRA. A CUALQUIER ALTURA.","ML ","14.2000",0,"CERO PESOS 00/100 M.N.",0,311371]
["EDFS.02(319)","ENTREPISOS, CUBIERTA Y ACABADOS DE AZOTEA         ",null,null,null,null,{"$f":"TEXT(SUM(G35:G39), \"$ #,##0.00 ;\")","v":"$ 0.00 "}]
[326065,"SUMINISTRO Y COLOCACION DE PANEL BILAMINADO Y ACANALADO PARA CUBIERTA DE AZOTEA, COMPUESTO POR UN NUCLEO DE ESPUMA RIGIDA DE POLIURETANO DE 1 ½\" DE ESPESOR Y DOS CARAS DE LAMINA PINTRO CAL. 26, CON ACABADO POLIESTER ESTANDAR EN COLORES BLANCO Y ARENA, INCLUYE: ELEMENTOS DE FIJACION, CORTES, AJUSTES, TRASLAPES, DESPERDICIOS, TAPAJUNTAS, HERRAMIENTAS, ANDAMIOS, LIMPIEZA, MANO DE OBRA  Y ACARREO DE MATERIALES AL LUGAR DE SU UTILIZACION, A CUALQUIER ALTURA.","M2 ","170.4000",0,"CERO PESOS 00/100 M.N.",0,311372]
[326565,"SUMINISTRO Y COLOCACION DE CABALLETE PARA CUBIERTA ACANALADA DE PANEL BILAMINADO, DE LAMINA PINTRO CALIBRE 26, DE 45.7 CM. DE DESARROLLO, COLOR ARENA,  INCLUYE: TRASLAPES, ACCESORIOS PARA SU COLOCACION, DESPERDICIOS, HERRAMIENTAS, ANDAMIOS, LIMPIEZAS, MANO DE OBRA Y ACARREO DE MATERIALES AL LUGAR DE SU UTILIZACION, A CUALQUIER ALTURA. ","ML ","49.7000",0,"CERO PESOS 00/100 M.N.",0,311373]
[326745,"SUMINISTRO Y COLOCACION DE TAPAGOTERO PARA CUBIERTA ACANALADA DE PANEL BILAMINADO, DE LAMINA PINTRO CALIBRE 22 DE 22.5 CM. DE DESARROLLO, COLOR ARENA, INCLUYE: ELEMENTOS DE FIJACION, CORTES, AJUSTES, TRASLAPES, DESPERDICIOS, HERRAMIENTAS, ANDAMIOS, LIMPIEZA, MANO DE OBRA  Y ACARREO DE MATERIALES AL LUGAR DE SU UTILIZACION, A CUALQUIER ALTURA.","ML ","142.0000",0,"CERO PESOS 00/100 M.N.",0,311374]
[326755,"SUMINISTRO Y COLOCACION DE TAPAGOTERO DE AJUSTE DE CUMBRERAS DE 22.5 CM DE DESARROLLO Y 38.6 CM. DE LONGITUD PARA CUBIERTA ACANALADA DE PANEL BILAMINADO, DE LAMINA PINTRO CALIBRE 22, COLOR ARENA, INCLUYE: ELEMENTOS DE FIJACION, TRASLAPES,  HERRAMIENTAS, ANDAMIOS, LIMPIEZA, MANO DE OBRA  Y ACARREO DE MATERIALES AL LUGAR DE SU UTILIZACION, A CUALQUIER ALTURA.","PZA","8.0000",0,"CERO PESOS 00/100 M.N.",0,311375]
[326765,"SUMINISTRO Y COLOCACION DE TAPAGOTERO DE AJUSTE ESQUINERO PARA CUBIERTA ACANALADA DE PANEL BILAMINADO, DE LAMINA PINTRO CALIBRE  22, DE 50 X 50 CM. DE LONGITUD POR LADO Y 22.5 MTS DE DESARROLLO, COLOR ARENA, INCLUYE: ELEMENTOS DE FIJACION, TRASLAPES,  HERRAMIENTAS, ANDAMIOS, LIMPIEZA, MANO DE OBRA  Y ACARREO DE MATERIALES AL LUGAR DE SU UTILIZACION, A CUALQUIER ALTURA.","PZA","17.0000",0,"CERO PESOS 00/100 M.N.",0,311376]
["EDFS.03(355)","RECUBRIMIENTOS Y ACABADOS                         ",null,null,null,null,{"$f":"TEXT(SUM(G41:G42), \"$ #,##0.00 ;\")","v":"$ 0.00 "}]
[357322,"BOQUILLAS EN PUERTAS Y VENTANAS, CON MORTERO CEMENTO-CAL-ARENA 1:2:6, INCLUYE: ANDAMIOS Y ACARREO DE MATERIALES AL SITIO DE SU UTILIZACION.","ML ","17.0000",0,"CERO PESOS 00/100 M.N.",0,311377]
[358033,"SUMINISTRO Y COLOCACION DE LOSETA CERAMICA PARA MURO ( AZULEJO ), CON RECUBRIMIENTO ESMALTADO, DE 25 X 40 CM., MCA. INTERCERAMIC, LINEA CATANIA, CUALQUIER COLOR, DE PRIMERA CALIDAD, ASENTADO CON PEGAZULEJO Y JUNTEDO CON JUNTEADOR DE COLOR, JUNTAS A HUESO, INCLUYE: TRAZO, CORTE, REMATES, ESCUADRE, DESPERDICIOS, DESPATINADO, EMBOQUILLADOS, CERTIFICADO DE CALIDAD, HERRAMIENTAS, MATERIALES, MANO DE OBRA, LIMPIEZA Y ACARREO DE MATERIALES AL SITIO DE SU UTILIZACION, A CUALQUIER NIVEL.","M2 ","56.8000",0,"CERO PESOS 00/100 M.N.",0,311378]
["EDFS.04(372)","PISOS                                             ",null,null,null,null,{"$f":"TEXT(SUM(G44:G45), \"$ #,##0.00 ;\")","v":"$ 0.00 "}]
[372242,"FIRME DE CONCRETO F´C= 150 KG/CM2 TMA= 3/4\",  DE 8 CM DE ESPESOR, ACABADO APALILLADO. INCLUYE: TRAZO, NIVELACION, AFINE Y COMPACTACION DEL TERRENO, AGUA, MATERIALES, EXTENDIDO, REGLEADO, CURADO, DESPERDICIOS, HERRAMIENTAS, LIMPIEZA, MANO DE OBRA Y ACARREO DEL MATERIAL AL SITIO DE SU UTILIZACION","M2 ","34.1000",0,"CERO PESOS 00/100 M.N.",0,311379]
[376023,"SUMINISTRO Y COLOCACION DE PISO DE LOSETA CERAMICA DE 50 X 50 CM., MCA. INTERCERAMIC DE PRIMERA, LINEA SAYULITA, DE CUALQUIER COLOR, GRADO DE DUREZA (PEI) \"IV\" , ASENTADO CON PEGAPISO Y JUNTEDO CON JUNTEADOR DE COLOR, JUNTAS DE 4 MM. DE ANCHO, INCLUYE: TRAZO, CORTE, REMATES, ESCUADRE, DESPERDICIOS, DESPATINADO, EMBOQUILLADOS, CERTIFICADO DE CALIDAD, HERRAMIENTAS, MATERIALES, MANO DE OBRA, LIMPIEZA Y ACARREO DE MATERIALES AL SITIO DE SU UTILIZACION, A CUALQUIER ALTURA.","M2 ","34.1000",0,"CERO PESOS 00/100 M.N.",0,311380]
["EDFS.05(382)","ELEMENTOS COMPLEMENTARIOS DE ALBAÑILERIA          ",null,null,null,null,{"$f":"TEXT(SUM(G47:G50), \"$ #,##0.00 ;\")","v":"$ 0.00 "}]
[346024,"FORJADO DE BASE PARA 2 TINACOS DE 1,100 LTS CADA UNO, CON MEDIDAS GENERALES DE 4.30 X 2.05 MTS Y 1.75 MTS DE ALTURA, CONSTRUIDA A BASE DE UNA LOSA DE CONCRETO F'C=250 KG/CM2, DE 10 CM DE ESPESOR, ARMADA CON VARILLAS DEL #3 @ 22 CM. EN AMBAS DIRECCIONES (VER PLANO DETALLES), CIMBRA COMUN, MURO DE LADRILLO DE LAMA DE 7.0 X 14.0 X 28.0 CM,  DE 0.14 MTS. DE ESPESOR, ASENTADO CON MORTERO CEMENTO-ARENA EN PROPORCION 1:4,  CADENAS Y CASTILLOS DE CONCRETO F'C=150 KG/CM2, 14 X14 CM. ARMADA CON 4 VARILLAS DEL #3 Y ESTR. DEL #2 A CADA 20 CMS. CIMBRA COMUN., APLANADO (EXTERIOR E INTERIOR) Y BOQUILLAS CON MORTERO CEMENTO-ARENA EN PROPORCION DE 1:4 DE 2 CMS. DE ESPESOR PROMEDIO, INCLUYE: MURETES CADENAS Y CASTILLOS DE CONCRETO F'C=150 KG/CM2, DE SOPORTE BAJO LOSA, PUERTA DE HERRERIA TUBULAR, PINTURA ANTICORROSIVA Y ESMALTE A DOS MANOS, HORMIGON CEM-JAL-ARE EN PROPORCION DE 1:4:12, DE 5 CMS. DE ESPESOR PROMEDIO, CON ACABADO APALILLADO FINO, PINTURA VINILICA APLICADA SOBRE MURO APLANADO, ACARREO Y ELEVACION DEL MATERIAL AL SITIO DE  SU UTILIZACION, MANO DE OBRA, HERRAMIENTA Y LIMPIEZA. (VER PLANO).","PZA","1.0000",0,"CERO PESOS 00/100 M.N.",0,311381]
[382012,"LOSA DE CONCRETO F'C=200 KG/CM2 DE 10 CM DE ESP. Y 60 CM DE ANCHO, PARA RECIBIR LAVABO U OVALIN, ARMADA CON VARILLA #3 (3/8\") A CADA 30 CM, EN AMBOS SENTIDOS. INCLUYE: CIMBRA COMUN Y DESCIMBRA, RECUBRIMIENTO DE AZULEJO LISO, DESPERDICIOS, DESPATILLADO, REMATES, EMBOQUILLADO Y ACARREO DE MATERIAL AL SITIO DE SU UTILIZACION, A CUALQUIER NIVEL.","ML ","4.3000",0,"CERO PESOS 00/100 M.N.",0,311382]
[383022,"FORJADO DE BASE PARA VERTEDERO DE 0.40 X 0.40 X 0.40 M. MEDIDAS INTERIORES, FORJADA CON LADRILLO DE LAMA DE 14 CM. DE ESPESOR ASENTADO Y APLANADO CON MORTERO CEMENTO-ARENA DE RIO EN PROPORCION 1:3, RECUBIERTA CON AZULEJO DE 1RA. EN AREAS  EXTERIORES, INCLUYE: TRAZO, NIVELACION, PLOMEO, EMBOQUILLADO, ACARREO DE MATERIALES AL SITIO DE SU UTILIZACION, MANO DE OBRA Y HERRAMIENTA.","PZA","1.0000",0,"CERO PESOS 00/100 M.N.",0,311383]
[383312,"CANAL DE DESAGUE EN SANITARIOS, DE 12.0 X 12.0 CM DE SECCION INTERIOR, FORJADO CON CONCRETO F'C=150 KG/CM2, ACABADO COMUN, RECUBIERTO CON LOSETA CERAMICA DE PRIMERA CALIDAD IGUAL AL DEL AREA CONTIGUA, JUNTEADO CON JUNTEADOR DE COLOR, INCLUYE: ACARREO DE MATERIALES AL SITIO DE SU UTILIZACION, A CUALQUIER NIVEL.","ML ","11.4000",0,"CERO PESOS 00/100 M.N.",0,311384]
["EDFS.06(393)","PINTURA                                           ",null,null,null,null,{"$f":"TEXT(SUM(G52:G54), \"$ #,##0.00 ;\")","v":"$ 0.00 "}]
[393022,"PINTURA VINIL-ACRÍLICA A BASE DE AGUA ACABADO SEMIMATE  LAVABLE, PARA INTERIORES Y EXTERIORES QUE NO DESPRENDA VAPORES TÓXICOS NI OLORES DESAGRADABLES, CON LAS SIGUIENTES CARACTERÍSTICAS ( SÓLIDOS POR PESO 46-52%, SÓLIDOS POR VOLUMEN 30-36%, VISCOSIDAD DE 100-130 UK A 25°C, DENSIDAD > O = 1.2 TON/M3., LAVABILIDAD > O = 4,000 CICLOS, TIEMPO DE SECADO AL TACTO, 30-40 MIN., TIEMPO DE SECADO DURO < O = 8 HRS., CICLO DE CURADO DE 7 DIAS, PH 6-8, RENDIMIENTO EN SUP. LISA 8-10 M2/LT., FINEZA DE MOLIDO (HEGMAN) 3-7 UH.)  EN MUROS APLANADOS DE MEZCLA APALILLADO O PULIDO, TRABAJO TERMINADO, A DOS MANOS, INCLUYE: MATERIALES MENORES Y DE CONSUMO, ANDAMIOS, PREPARACION DE LA SUPERFICIE, SELLADO DE LA SUPERFICIE, HERRAMIENTAS, LIMPIEZA, MANO DE OBRA Y  ACARREOS DE MATERIALES AL SITIO DE SU UTILIZACIÓN.","M2 ","1,233.6000",0,"CERO PESOS 00/100 M.N.",0,311385]
[393122,"PINTURA DE ESMALTE ALQUIDALICO ANTICORROSIVO, ACABADO BRILLANTE, PARA INTERIORES Y EXTERIORES QUE NO DESPRENDA VAPORES TÓXICOS NI OLORES DESAGRADABLES, CON LAS SIGUIENTES CARACTERÍSTICAS ( SÓLIDOS POR PESO 49-60%, SÓLIDOS POR VOLUMEN 40-46%, VISCOSIDAD DE 110-160 UK A 25°C, DENSIDAD 0.9-1.2 TON/M3., BRILLO A 60°C, 90%, TIEMPO DE SECADO AL TACTO, < O = 6 HRS., TIEMPO DE SECADO DURO < O = 24 HRS., ADHERENCIA 100%, RENDIMIENTO EN SUP. LISA 8-10 M2/LT., DILUCIÓN MÁXIMA (AGUARRÁS, THINER), 15 %,  EN HERRERIA CERRADA (DUELA DE LAMINA ACANALADA), TRABAJO TERMINADO, A DOS MANOS, INCLUYE: MATERIALES MENORES Y DE CONSUMO, ANDAMIOS, PREPARACION DE LA SUPERFICIE, HERRAMIENTAS, LIMPIEZA, MANO DE OBRA Y  EQUIPO DE SEGURIDAD. A CUALQUIER NIVEL.","M2 ","710.2000",0,"CERO PESOS 00/100 M.N.",0,311386]
[393142,"PINTURA DE ESMALTE ALQUIDALICO ANTICORROSIVO, ACABADO BRILLANTE, PARA INTERIORES Y EXTERIORES QUE NO DESPRENDA VAPORES TÓXICOS NI OLORES DESAGRADABLES, CON LAS SIGUIENTES CARACTERÍSTICAS ( SÓLIDOS POR PESO 49-60%, SÓLIDOS POR VOLUMEN 40-46%, VISCOSIDAD DE 110-160 UK A 25°C, DENSIDAD 0.9-1.2 TON/M3., BRILLO A 60°C, 90%, TIEMPO DE SECADO AL TACTO, < O = 6 HRS., TIEMPO DE SECADO DURO < O = 24 HRS., ADHERENCIA 100%, RENDIMIENTO EN SUP. LISA 8-10 M2/LT., DILUCIÓN MÁXIMA (AGUARRÁS, THINER), 15 %,  EN HERRERIA ABIERTA DE PERFILES ESTRUCTURALES (PROTECCIONES), MEDIDA POR UN SOLO LADO, TRABAJO TERMINADO, A DOS MANOS, INCLUYE: MATERIALES MENORES Y DE CONSUMO, ANDAMIOS, PREPARACION DE LA SUPERFICIE, HERRAMIENTAS, LIMPIEZA, MANO DE OBRA Y  EQUIPO DE SEGURIDAD. A CUALQUIER NIVEL. (LA PINTURA ES POR AMBOS LADOS DE LA HERRERIA, PERO PARA SU PAGO ES MEDIDA SOLO POR 1 SOLO LADO).","M2 ","14.2000",0,"CERO PESOS 00/100 M.N.",0,311387]
["EDFS.07(396)","LIMPIEZA                                          ",null,null,null,null,{"$f":"TEXT(SUM(G56:G59), \"$ #,##0.00 ;\")","v":"$ 0.00 "}]
[396022,"LIMPIEZA EN PISO DE CERAMICA, CON AGUA Y JABON.","M2 ","35.5000",0,"CERO PESOS 00/100 M.N.",0,311388]
[396032,"LIMPIEZA DE RECUBRIMIENTOS VIDRIADOS EN MUROS, CON JABON, AGUA Y ACIDO MURIATICO AL 10 %.","M2 ","56.8000",0,"CERO PESOS 00/100 M.N.",0,311389]
[396042,"LIMPIEZA DE VIDRIOS CON AGUA Y JABON, 2 CARAS.","M2 ","11.4000",0,"CERO PESOS 00/100 M.N.",0,311390]
[396222,"LIMPIEZA DE MUEBLES DE BAÑO, CON AGUA Y JABON.","PZA","7.0000",0,"CERO PESOS 00/100 M.N.",0,311391]
["EDFS.08(410)","CANCELERIA, HERRERIA, ALUMINIO, VIDRIOS Y CHAPAS  ",null,null,null,null,{"$f":"TEXT(SUM(G61:G66), \"$ #,##0.00 ;\")","v":"$ 0.00 "}]
[420008,"SUMINISTRO Y COLOCACION DE MAMPARA Y PUERTA DE LAMINA ESMALTADA SANILOCK LINEA STANDART 4200, INCLUYE: PANEL LATERAL, PUERTA, FRONTALES, BISAGRAS, CERROJOS, MATERIALES PARA SU FIJACION, FLETES, MANIOBRAS, MANO DE OBRA ESPECIALIZADA Y ACARREO DEL MATERIAL AL SITIO DE SU UTILIZACION, HERRAMIENTA, DESPERDICIOS Y LIMPIEZA DEL AREA DE TRABAJO.\n\n","M2 ","27.9300",0,"CERO PESOS 00/100 M.N.",0,311392]
[422022,"SUMINISTRO Y COLOCACION DE MULTYPUERTA DE 0.90 X 2.10 M. INCLUYE: MARCO, JAMBA Y CUBRECANTOS DE ALUMINIO, HERRAJES, ANTEPECHO CON PERFILES DE ALUMINIO ANODIZADO NATURAL DE 0.90 X 0.40 M, ELEMENTOS DE FIJACION, MATERIALES MENORES, SELLADO PERIMETRAL, FLETES Y ACARREOS DE MATERIALES AL SITIO DE SU COLOCACION, A CUALQUIER NIVEL.","PZA","2.0000",0,"CERO PESOS 00/100 M.N.",0,311393]
[424043,"SUMINISTRO Y COLOCACION DE CHAPA PHILLIPS X-720 O AS-725, INCLUYE: PERFORACIONES, ELEMENTOS DE FIJACION, HERRAMIENTAS, MANO DE OBRA Y  ACARREO DE MATERIAL AL SITIO DE SU UTILIZACION.","PZA","2.0000",0,"CERO PESOS 00/100 M.N.",0,311394]
[424322,"SUMINISTRO Y COLOCACION DE TOPES DE PISO PARA PUERTA. INC.: ACARREO DE MATERIAL AL SITIO DE SU UTILIZACION, A CUALQUIER NIVEL.","PZA","2.0000",0,"CERO PESOS 00/100 M.N.",0,311395]
[426010,"SUMINISTRO Y COLOCACION DE CRISTAL FLOTADO DE 6 MM. DE ESPESOR,  ASENTADO CON SILICON, INCLUYE: CORTES, DESPERDICIOS Y ACARREO DE MATERIALES AL SITIO DE SU UTILIZACION A CUALQUIER NIVEL.","M2 ","13.0000",0,"CERO PESOS 00/100 M.N.",0,311396]
[426522,"SUMINISTRO Y COLOCACION DE ESPEJO DE 0.40 X 0.60 MTS. DE SECCION, MONTADA EN BASTIDOR DE MADERA Y TRIPLAY DE PINO DE 6 MM., INCLUYE: MARCO DE ALUMINIO ANODIZADO NATURAL, MATERIALES, EQUIPO, HERRAMIENTA Y MANO DE OBRA.","PZA","4.0000",0,"CERO PESOS 00/100 M.N.",0,311397]
["EDFS.09(564)","INSTALACION HIDRAULICA, SANITARIA Y GAS EN EDIF.  ",null,null,null,null,{"$f":"TEXT(SUM(G68:G71), \"$ #,##0.00 ;\")","v":"$ 0.00 "}]
[570614,"SALIDA HIDRAULICA DE AGUA FRIA Y/O CALIENTE, PARA ALIMENTACION A MUEBLE SANITARIO, CONSISTENTE EN TUBERIA Y CONEXIONES DE CPVC DE 1/2\" A 2\" DE DIAMETRO,  INCLUYE: TRAZO, RANURAS, CAMARAS CONTRA GOLPE DE ARIETE, CONEXIONES, ( COPLES, CODOS, TAPONES, TEES, YEES, REDUCCIONES, ETC),  VALVULAS, TUERCAS UNION EN CUADROS DE VALVULAS, MATERIALES MENORES Y DE CONSUMO, PEGAMENTOS, ELEMENTOS DE FIJACION, DESPERDICIOS,  HERRAMIENTAS, LIMPIEZA, MANO DE OBRA, PRUEBAS HIDROSTATICAS, FLETES Y ACARREO DE LOS MATERIALES AL SITIO DE SU INSTALACION. (EN CUALQUIER NIVEL)","SAL","14.0000",0,"CERO PESOS 00/100 M.N.",0,311398]
[571102,"SALIDA SANITARIA A MUEBLE, CONSISTENTE EN TUBERIA Y CONEXIONES DE PVC DE 2\" Y 4\" DE DIAMETRO, INCLUYE: DESPERDICIO DE TUBERIA, LINEA DE VENTILACION (DESFOGUE),  COPLES, CODOS, TEES, YEES, REDUCCIONES, REGISTRO SANITARIO, MATERIALES MENORES, FLETES Y ACARREO DE LOS MATERIALES AL SITIO DE SU INSTALACION Y PRUEBAS.\n","SAL","14.0000",0,"CERO PESOS 00/100 M.N.",0,311399]
[579122,"INTERCONEXION Y DESCARGA PARA 2 TINACOS CON TUBERIA Y CONEXIONES DE COBRE TIPO \"M\". INC.: VALVULAS, DESPERDICIO, MATERIALES MENORES, PRUEBAS Y  ACARREO DE MATERIALES AL SITIO DE SU COLOCACION.","PDA","1.0000",0,"CERO PESOS 00/100 M.N.",0,311400]
[592012,"SUMINISTRO Y COLOCACION DE CESPOL BOTE DE P.V.C. CON REJILLA CROMADA. INCLUYE: MATERIALES MENORES Y DE CONSUMO, HERRAMIENTAS, DESPERDICIOS, PRUEBAS, MANO DE OBRA Y ACARREO DE MATERIALES AL SITIO DE SU COLOCACION.","PZA","3.0000",0,"CERO PESOS 00/100 M.N.",0,311401]
["EDFS.10(590)","MUEBLES DE BAÑO Y COCINA                          ",null,null,null,null,{"$f":"TEXT(SUM(G73:G79), \"$ #,##0.00 ;\")","v":"$ 0.00 "}]
[385018,"SUMINISTRO Y COLOCACION DE PAPELERA CROMADA DE EMPOTRAR MCA. URREA FIG. 3304 O SIMILAR,  INCLUYE: MATERIALES MENORES, ELEMENTOS DE FIJACION, HERRAMIENTAS, MANO DE OBRA Y ACARREO DE MATERIALES AL SITIO DE SU COLOCACION.","PZA","4.0000",0,"CERO PESOS 00/100 M.N.",0,311402]
[385312,"SUMINISTRO Y COLOCACION DE BARRA DE APOYO PARA DISCAPACITADOS DE ACERO INOXIDABLE PARA W.C. MOD. 7386-0 (1045) DE SANILOCK O SIMILAR CON CHAPETON, FIJADO A MURO. INCLUYE: ACCESORIOS Y MATERIALES DE FIJACION.","PZA","2.0000",0,"CERO PESOS 00/100 M.N.",0,311403]
[590006,"SUMINISTRO E INSTALACION DE INODORO CON TANQUE BAJO, MODELO CADET PRO RH EL, COLOR BLANCO, MARCA AMERICAN STANDARD O SIMILAR, INCLUYE: ASIENTO DE PLASTICO, LLAVE ANGULAR FIG. 401, MANGUERA FLEXIBLE COFLEX, TANQUE, ACCESORIOS DE BRONCE PARA EL TANQUE BAJO, MATERIALES MENORES Y DE CONSUMO, ELEMENTOS DE FIJACION, LIMPIEZA, CUELLO DE CERA CON GUIA, PRUEBAS, HERRAMIENTAS, MANO DE OBRA Y ACARREO DE MATERIALES AL SITIO DE SU COLOCACION.","PZA","5.0000",0,"CERO PESOS 00/100 M.N.",0,311404]
[590112,"SUMINISTRO Y COLOCACION DE MINGITORIO BLANCO, MCA. AMERICAN STANDARD MOD. NIAGARA O SIMILAR. INCLUYE: LLAVE DE CAMPANA FIG. 17 MG MCA. URREA,  MATERIALES MENORES, PRUEBAS Y ACARREO DE MATERIALES AL SITIO DE SU COLOCACION.","PZA","3.0000",0,"CERO PESOS 00/100 M.N.",0,311405]
[590265,"SUMINISTRO Y COLOCACION DE OVALIN DE SOBREPONER, MCA. AMERICAN STANDAR, MOD. CADET UNIVERSAL MONOMANDO, INCLUYE: LLAVES ANGULARES FIG. 401, CESPOL CROMADO MCA. URREA FIG. 207, LLAVE ECONOMIZADORA DE CIERRE AUTOMATICO MARCA HELVEX FIG. TV-120, MANGUERA COFLEX, DESPERDICIOS, MATERIALES MENORES Y DE CONSUMO, ELEMENTOS DE FIJACION, MANO DE OBRA, HERRAMIENTA, LIMPIEZA, EQUIPO, PRUEBAS Y ACARREO DE MATERIALES AL SITIO DE SU COLOCACION.","PZA","3.0000",0,"CERO PESOS 00/100 M.N.",0,311406]
[590356,"SUMINISTRO Y COLOCACION DE VERTEDERO DE ACERO INOXIDABLE CAL. 18, TIPO 304 18/10, DE 40 X 40 X 26 M.,  INCLUYE: LLAVE DE CHORRO CROMADA FIG. 18-L, CHAPETON CROMADO, CONTRA CANASTA MCA. URREA FIG. 3801, MATERIALES MENORES Y DE CONSUMO, NIVELACION, SELLADO PERIMETRAL, PRUEBAS, HERRAMIENTAS, LIMPIEZA, MANO DE OBRA Y ACARREO AL SITIO DE SU COLOCACION.","PZA","1.0000",0,"CERO PESOS 00/100 M.N.",0,311407]
[590522,"SUMINISTRO, ELEVACION Y COLOCACION DE TINACO PREFABRICADO LIGERO DE 1100 LTS DE CAP., (REDONDO) FABRICADO CON PLASTICO DE ALTA RESISTENCIA A RAYOS SOLARES, CLIMAS EXTREMOS E INTEMPERISMO, MOLDEADO, DE DOS CAPAS, INCLUYE: FLETES, MATERIALES MENORES, CONEXIONES, PRUEBAS, GARANTÍAS, NIVELACION, HERRAMIENTAS, LIMPIEZA, TAPA ROSCADA Y MANO DE OBRA. CUALQUIER ALTURA.","PZA","2.0000",0,"CERO PESOS 00/100 M.N.",0,311408]
[null,"RESUMEN DE PARTIDAS"]
["BAS-REH-04824","REPOSICIÓN DE CUBIERTAS DE PANEL DE POLIURETANO Y REHABILITACIÓN GENERAL DE NÚCLEO DE SANITARIOS EN LA ESCUELA SECUNDARIA TÉCNICA NO. 131 CCT 14DST0138X, UBICADA EN LA LOCALIDAD EL SALITRE, MUNICIPIO DE SAN MARTÍN HIDALGO, JALISCO.",null,null,null,null,{"$f":"G17","v":"$ 0.00 "}]
["EDFS","EDIFICIOS",null,null,null,null,{"$f":"G18","v":"$ 0.00 "}]
["EDFS.01(140)","DEMOLICIONES, DESMONTAJES Y MECANICA DE SUELOS    ",null,null,null,null,{"$f":"G19","v":"$ 0.00 "}]
["EDFS.02(319)","ENTREPISOS, CUBIERTA Y ACABADOS DE AZOTEA         ",null,null,null,null,{"$f":"G34","v":"$ 0.00 "}]
["EDFS.03(355)","RECUBRIMIENTOS Y ACABADOS                         ",null,null,null,null,{"$f":"G40","v":"$ 0.00 "}]
["EDFS.04(372)","PISOS                                             ",null,null,null,null,{"$f":"G43","v":"$ 0.00 "}]
["EDFS.05(382)","ELEMENTOS COMPLEMENTARIOS DE ALBAÑILERIA          ",null,null,null,null,{"$f":"G46","v":"$ 0.00 "}]
["EDFS.06(393)","PINTURA                                           ",null,null,null,null,{"$f":"G51","v":"$ 0.00 "}]
["EDFS.07(396)","LIMPIEZA                                          ",null,null,null,null,{"$f":"G55","v":"$ 0.00 "}]
["EDFS.08(410)","CANCELERIA, HERRERIA, ALUMINIO, VIDRIOS Y CHAPAS  ",null,null,null,null,{"$f":"G60","v":"$ 0.00 "}]
["EDFS.09(564)","INSTALACION HIDRAULICA, SANITARIA Y GAS EN EDIF.  ",null,null,null,null,{"$f":"G67","v":"$ 0.00 "}]
["EDFS.10(590)","MUEBLES DE BAÑO Y COCINA                          ",null,null,null,null,{"$f":"G72","v":"$ 0.00 "}]
[]
["IMPORTE CON LETRA (IVA INCLUIDO)",null,null,null,null,"SUBTOTAL M.N.",{"$f":"TEXT(G17,  \"$ #,##0.00 ;\")","v":"$ 0.00 "}]
[{"$f":"UPPER(CONVERTIRNUM(ROUND( G17 * 1.16, 2)))","v":"CERO PESOS 00/100 M.N."},null,null,null,null,"IVA M.N.",{"$f":"TEXT(ROUND( G17 * 0.16, 2),  \"$ #,##0.00 ;\")","v":"$ 0.00 "}]
[null,null,null,null,null,"TOTAL M.N.",{"$f":"TEXT(ROUND( G17 * 1.16, 2),  \"$ #,##0.00 ;\")","v":"$ 0.00 "}]